Cogmind - Beta 10.1 @@@ ROGUE MODE // 2020.10.14 @ 00:35:23 Player: Cracklepappy Result: Self-destructed Performance ------------- Evolutions (1) 500 Regions Visited (6) 1200 Robots Destroyed (102) 510 Value Destroyed (2406) 2406 Prototype IDs (31) 620 Alien Tech Used (0) 0 Bonus (267) 267 TOTAL SCORE: 5503 Bonus ------- High Alert Combat Kills 11 Follower Combat Kills 63 Aligned with FarCom 300 Friendly Fire -107 Cogmind --------- Core Integrity 14/400 Matter 132/300 Energy 280/280 System Corruption 0% Temperature Cool (9) Movement Treading (220) Ox3 Location -8/Mines Parts ------- > --- POWER (1) -------- Heavy Ion Engine > --- PROPULSION (2) --- Light Treads Light Treads > --- UTILITY (4) ------ High-capacity Storage Unit Humpback Core Shielding > --- WEAPON (2) ------- Autogun Improved Assault Rifle > --- INVENTORY (32) --- Heavy Ion Engine Heavy Ion Engine Nuclear Core Reinforced Deuterium Engine Reinforced Deuterium Engine Light Treads Light Treads Light Treads Experimental Heat Sink Medium Storage Unit Large Storage Unit Large Storage Unit High-capacity Storage Unit High-capacity Storage Unit High-capacity Matter Pod (0) Gravity Neutralizing Apparatus Advanced Visual Processing Unit Experimental Sensor Array Improved Signal Interpreter Weapon Shielding Light Armor Plating Hardened Light Armor Plating Long-range Tractor Beam AS-neutralizer No. 17b AWS/Thermal Shotgun Improved Assault Rifle Improved Assault Rifle 8R-AWN's Boregun Grenade Launcher Rocket Launcher Peak State ------------ > --- POWER ------------ Heavy Ion Engine > --- PROPULSION ------- Light Treads Light Treads > --- UTILITY ---------- High-capacity Storage Unit Humpback Core Shielding > --- WEAPON ----------- Autogun Improved Assault Rifle > --- INVENTORY -------- Heavy Ion Engine Heavy Ion Engine Nuclear Core Reinforced Deuterium Engine Reinforced Deuterium Engine Light Treads Light Treads Experimental Heat Sink Medium Storage Unit Large Storage Unit High-capacity Storage Unit High-capacity Storage Unit Gravity Neutralizing Apparatus Advanced Visual Processing Unit Experimental Sensor Array Improved Signal Interpreter Light Armor Plating AS-neutralizer No. 17b AWS/Thermal Shotgun Improved Assault Rifle Improved Assault Rifle 8R-AWN's Boregun Grenade Launcher Rocket Launcher [Rating: 23] Favorites ----------- Power Light Ion Engine Engine Light Ion Engine Propulsion Light Treads Treads Light Treads Wheel Compact Wheel Utility High-capacity Storage Unit Storage High-capacity Storage Unit Processor Advanced Visual Processing Unit Protection Core Shielding Weapon Autogun Energy Gun Spread Laser Energy Cannon Beam Cannon Ballistic Gun Autogun Launcher Grenade Launcher Special Weapon Mining Laser Build | -11 -10 -10 -9 -9 -9 -8 ------- Run | Scr Mat Min Mat Min Exi Min Slots Evolved 2 | . . . 2 . . . Power . | . . . . . . . Propulsion . | . . . . . . . Utility 2 | . . . 2 . . . Weapon . | . . . . . . . Parts Attached 81 | 8 18 13 23 5 12 2 Power 7 | 1 1 1 3 1 . . Engine 7 | 1 1 1 3 1 . . Core . | . . . . . . . Reactor . | . . . . . . . Propulsion 21 | 3 1 3 8 . 4 2 Treads 20 | 2 1 3 8 . 4 2 Leg . | . . . . . . . Wheel 1 | 1 . . . . . . Hover . | . . . . . . . Flight . | . . . . . . . Utility 16 | 2 3 2 4 . 5 . Device . | . . . . . . . Storage 12 | 2 3 2 3 . 2 . Processor 1 | . . . 1 . . . Hackware . | . . . . . . . Protection 3 | . . . . . 3 . Artifact . | . . . . . . . Weapon 37 | 2 13 7 8 4 3 . Energy Gun 3 | 2 . . 1 . . . Energy Cannon 5 | . 5 . . . . . Ballistic Gun 19 | . 4 4 6 2 3 . Ballistic Cannon . | . . . . . . . Launcher 8 | . 2 3 1 2 . . Special Weapon 2 | . 2 . . . . . Impact Weapon . | . . . . . . . Slashing Weapon . | . . . . . . . Piercing Weapon . | . . . . . . . Special Melee Weapon . | . . . . . . . Unidentified Prototypes . | . . . . . . . Parts Lost 20 | . 2 9 3 . 6 . Power 3 | . 1 1 1 . . . Propulsion 5 | . . 3 . . 2 . Utility 1 | . . . . . 1 . Weapon 11 | . 1 5 2 . 3 . Highest Loss Streak 7 | . 1 7 2 . 4 . Average Slot Usage (%) 97 | . 99 98 99 99 91 88 Engine 11 | . 13 13 10 11 11 11 Treads 23 | . 25 27 22 21 22 22 Storage 28 | . 28 28 32 33 21 22 Processor 4 | . . . 10 11 3 . Protection 2 | . . . . . 11 11 Energy Cannon 2 | . 9 . . . . . Ballistic Gun 19 | . 17 15 18 21 22 22 Launcher 2 | . . 12 1 . . . Naked Turns . | . . . . . . . Heaviest Build 158 | 14 57 57 96 96 158 127 Greatest Support 40 | 40 40 40 40 40 40 40 Greatest Overweight (x) 4 | . 2 2 2 4 3 3 Average Overweight (x) 1 | . . 1 1 2 2 3 Largest Inventory Capacity 40 | 8 18 18 26 26 40 32 Average Capacity 22 | 6 16 18 25 26 25 32 Most Carried 32 | 8 16 18 26 26 29 32 Average Carried 21 | 4 15 15 25 25 21 31 Final Capacity 32 | 8 18 18 26 26 32 32 Final Carried 32 | 8 16 16 26 26 29 32 Class Distribution -------------------- 62% | Hauler-Mutant 37% | Mutant Dominant Class ---------------- Mutant | -10/Materials Mutant | -10/Mines Hauler-Mutant | -9/Materials Hauler-Mutant | -9/Mines Hauler-Mutant | -9/Exiles Hauler-Mutant | -8/Mines Resources | -11 -10 -10 -9 -9 -9 -8 ----------- Run | Scr Mat Min Mat Min Exi Min Matter Collected 2693 | 280 351 278 1010 305 318 151 Remotely . | . . . . . . . Salvage Created 3476 | 177 947 399 1536 165 101 151 Parts 193 | 12 48 21 91 12 4 5 Haulers Intercepted 6 | . 2 . 4 . . . Recyclers Shooed 7 | . 2 1 3 . . 1 Parts Field Recycled . | . . . . . . . Retrieved Matter . | . . . . . . . Parts Self-Destructed . | . . . . . . . Prevented . | . . . . . . . Kills | -11 -10 -10 -9 -9 -9 -8 ------- Run | Scr Mat Min Mat Min Exi Min Combat Hostiles Destroyed 76 | . 16 27 25 4 1 3 Melee 1 | . . 1 . . . . Guns 51 | . 7 15 25 . 1 3 Cannons 6 | . 6 . . . . . AOE 18 | . 3 11 . 4 . . Classes Destroyed 13 | 2 4 3 3 . . 1 Worker 2 | . . . 1 1 . . Builder 1 | . . 1 . . . . Tunneler 5 | 5 . . . . . . Hauler 6 | . 2 . 4 . . . Recycler 7 | 1 3 . 3 . . . Watcher 5 | . 3 . 2 . . . Swarmer 8 | . 3 5 . . . . Grunt 45 | . 13 8 18 4 . 2 Brawler 1 | . . . 1 . . . Duelist 1 | . . . . . . 1 Sentry 6 | . . . 6 . . . Demolisher 1 | . . 1 . . . . Assembled 13 | . . 13 . . . . Best Kill Streak 14 | 5 5 14 6 3 1 2 Combat Bots Only 13 | . 3 13 4 2 1 2 Max Kills in Single Turn 3 | 1 3 3 2 3 1 1 Gunslinging . | . . . . . . . Exploded 3 | . 3 2 . 2 . . Melee 1 | . . 1 . . . . Uniques/NPCs Destroyed 1 | . . . . . 1 . 8R-AWN (-9/Exiles) Combat | -11 -10 -10 -9 -9 -9 -8 -------- Run | Scr Mat Min Mat Min Exi Min Damage Taken 4609 | . 495 1129 1166 161 1283 375 Core 567 | . 61 120 177 22 131 56 Absorbed by Shields . | . . . . . . . Core Remaining (%) 63 | 100 . 27 . . . . Volleys Fired 301 | 9 63 43 114 3 54 15 Largest 2 | 2 2 2 2 1 2 2 Hottest 120 | 90 120 60 88 33 46 46 Shots Fired 584 | 18 122 80 225 3 106 30 Gun 501 | 18 64 60 223 . 106 30 Cannon 54 | . 54 . . . . . Launcher 27 | . 2 20 2 3 . . Special 2 | . 2 . . . . . Kinetic 461 | . 64 60 201 . 106 30 Thermal 96 | 18 56 . 22 . . . Explosive 27 | . 2 20 2 3 . . Electromagnetic . | . . . . . . . Robot Hit Streak 21 | 11 10 10 14 4 21 11 Robot Miss Streak 5 | 1 3 5 4 . 1 1 Penetration Max . | . . . . . . . Secondary Targets 5 | . 1 1 2 . . 1 Max Gunslinging Chain 1 | . 1 1 1 . . 1 Shots Hit Robots 434 | 12 81 61 161 3 93 23 Core Hits 217 | 7 38 66 74 8 15 9 Critical Hits 3 | . . 1 1 . 1 . Critical Kills . | . . . . . . . Critical Parts Destroyed 2 | . . 1 1 . . . Melee Attacks . | . . . . . . . Impact . | . . . . . . . Slashing . | . . . . . . . Piercing . | . . . . . . . Sneak Attacks . | . . . . . . . Combat Hostiles . | . . . . . . . Follow-up Attacks . | . . . . . . . Damage Inflicted 6994 | 140 1249 1527 2049 279 1408 342 Guns 5082 | 140 468 726 2012 . 1408 328 Cannons 630 | . 630 . . . . . Explosions 1230 | . 151 763 37 279 . . Melee . | . . . . . . . Ramming 52 | . . 38 . . . 14 Kinetic 4703 | . 468 726 1773 . 1408 328 Thermal 1009 | 140 630 . 239 . . . Explosive 1230 | . 151 763 37 279 . . Electromagnetic . | . . . . . . . Impact . | . . . . . . . Slashing . | . . . . . . . Piercing . | . . . . . . . Highest Corruption 1 | . 1 1 . . . . Average Corruption 1 | . 1 1 . . . . Corruption Purged . | . . . . . . . Effects 11 | . 7 4 . . . . Message Errors 4 | . 3 1 . . . . Energy Discharges 3 | . 3 . . . . . Data Loss (minor) 2 | . . 2 . . . . Targeting Errors 2 | . 1 1 . . . . Overload Shots . | . . . . . . . Overflow Damage 111 | . 43 68 . . . . Projectiles 25 | . 25 . . . . . Explosions 86 | . 18 68 . . . . Melee . | . . . . . . . Knockbacks . | . . . . . . . Impact . | . . . . . . . Kinetic . | . . . . . . . Secondary . | . . . . . . . Self-Inflicted Damage 258 | . 13 231 14 . . . Shots 12 | . 2 9 1 . . . Rammed 11 | . . 9 . . . 2 Targets Rammed 12 | . . 10 . . . 2 Kicked . | . . . . . . . Crushed 1 | . . 1 . . . . Highest Temperature 363 | 120 363 125 243 . 49 20 Average Temperature 52 | 45 80 47 56 . 15 5 Received Heat Transfer 1368 | . 264 396 504 51 . 153 Siege Activations . | . . . . . . . Robots Corrupted . | . . . . . . . Combat Hostiles . | . . . . . . . Parts Fried . | . . . . . . . Impact Corruptions . | . . . . . . . Robots Melted . | . . . . . . . Combat Hostiles . | . . . . . . . Parts Melted . | . . . . . . . Heat Transferred 2011 | 384 1332 . 295 . . . Parts Sabotaged . | . . . . . . . Parts Stolen . | . . . . . . . Parts Stripped . | . . . . . . . Power Chain Reactions . | . . . . . . . Missiles Intercepted . | . . . . . . . Alert | -11 -10 -10 -9 -9 -9 -8 ------- Run | Scr Mat Min Mat Min Exi Min Peak Influence 417 | 30 184 219 417 207 . 85 Initial 157 | . 19 54 . 157 . . Average 123 | 13 66 86 226 88 . 52 Maximum Alert Level 2 | . . 1 2 1 . . Low Security (%) 78 | 100 100 96 43 82 . 100 Level 1 17 | . . 3 43 17 . . Level 2 4 | . . . 13 . . . Level 3 . | . . . . . . . Level 4 . | . . . . . . . Level 5 . | . . . . . . . High Security . | . . . . . . . Max Security . | . . . . . . . Squads Dispatched 11 | . 4 . 7 . . . Investigation 6 | . 2 . 4 . . . Extermination . | . . . . . . . Reinforcement 5 | . 2 . 3 . . . Assault . | . . . . . . . Garrison . | . . . . . . . Intercept . | . . . . . . . Construction Impeded . | . . . . . . . Haulers Reinforced . | . . . . . . . Stealth | -11 -10 -10 -9 -9 -9 -8 --------- Run | Scr Mat Min Mat Min Exi Min Distress Signals 5 | . 2 . 3 . . . Communications Jammed . | . . . . . . . Distress Signals . | . . . . . . . Times Spotted 122 | . 26 38 42 7 1 8 Peak Tracking Total 8 | . 4 8 4 3 2 3 Tactical Retreats 7 | . 4 2 . . . 1 Traps | -11 -10 -10 -9 -9 -9 -8 ------- Run | Scr Mat Min Mat Min Exi Min Traps Triggered 4 | . 2 . 2 . . . Indirectly . | . . . . . . . Trap Hack Attempts . | . . . . . . . Triggered . | . . . . . . . Disarmed . | . . . . . . . Reprogrammed . | . . . . . . . Reused . | . . . . . . . Traps Extracted . | . . . . . . . Installed . | . . . . . . . Triggered . | . . . . . . . Machines | -11 -10 -10 -9 -9 -9 -8 ---------- Run | Scr Mat Min Mat Min Exi Min Machines Disabled 7 | . 1 5 1 . . . Max in Single Turn 2 | . 1 2 1 . . . Machines Sabotaged . | . . . . . . . Garrisons Compromised . | . . . . . . . Overloaded Fab Kills . | . . . . . . . Fab Network Shutdowns . | . . . . . . . Hacking | -11 -10 -10 -9 -9 -9 -8 --------- Run | Scr Mat Min Mat Min Exi Min Machines Accessed 16 | . 7 . 7 . 2 . Terminals 9 | . 5 . 4 . . . Fabricators . | . . . . . . . Repair Stations . | . . . . . . . Recycling Units 4 | . 2 . 2 . . . Scanalyzers 1 | . . . 1 . . . Garrison Access . | . . . . . . . Total Hacks 39 | . 18 . 19 . 2 . Successful 20 | . 11 . 7 . 2 . Failed 19 | . 7 . 12 . . . Catastrophic 1 | . 1 . . . . . Database Lockouts . | . . . . . . . Manual 18 | . 5 . 12 . 1 . Terminals 29 | . 15 . 14 . . . Fabricators . | . . . . . . . Repair Stations . | . . . . . . . Recycling Units 5 | . 3 . 2 . . . Scanalyzers 3 | . . . 3 . . . Garrison Access . | . . . . . . . Terminal Hacks 13 | . 7 . 4 . 2 . Record 1 | . . . . . 1 . Prototype ID Bank 4 | . 2 . 2 . . . Branch Access Points 1 | . . . 1 . . . Terminal Index 1 | . 1 . . . . . Unreport Threat 1 | . 1 . . . . . Locate Traps 1 | . 1 . . . . . Hauler Manifests 2 | . 1 . 1 . . . Zone Layout 1 | . 1 . . . . . EX-Prototype ID Bank 1 | . . . . . 1 . Fabricator Hacks . | . . . . . . . Repair Station Hacks . | . . . . . . . Recycling Unit Hacks 1 | . 1 . . . . . Report Inventory 1 | . 1 . . . . . Scanalyzer . | . . . . . . . Garrison Access Hacks . | . . . . . . . Unauthorized Hacks 6 | . 3 . 3 . . . Terminals 2 | . 1 . 1 . . . Track 1 | . . . 1 . . . Operators 1 | . 1 . . . . . Fabricators . | . . . . . . . Repair Stations . | . . . . . . . Recycling Units 4 | . 2 . 2 . . . Reject 1 | . 1 . . . . . Tunnel 3 | . 1 . 2 . . . Scanalyzers . | . . . . . . . Garrison Access . | . . . . . . . Data Cores Recovered . | . . . . . . . Used . | . . . . . . . Hacking Detections 11 | . 6 . 5 . . . Full Trace Events . | . . . . . . . Feedback Events . | . . . . . . . Feedback Blocked . | . . . . . . . Robot Schematics Acquired . | . . . . . . . Robots Built . | . . . . . . . Matter . | . . . . . . . Time . | . . . . . . . Total Robot Build Rating . | . . . . . . . Part Schematics Acquired . | . . . . . . . Parts Built . | . . . . . . . Matter . | . . . . . . . Time . | . . . . . . . Total Part Build Rating . | . . . . . . . Parts Repaired . | . . . . . . . Time . | . . . . . . . Parts Recycled . | . . . . . . . Recycled Matter . | . . . . . . . Retrieved Matter . | . . . . . . . Retrieved Components . | . . . . . . . Parts Scanalyzed . | . . . . . . . Part Schematics Acquired . | . . . . . . . Parts Damaged . | . . . . . . . Bothacking | -11 -10 -10 -9 -9 -9 -8 ------------ Run | Scr Mat Min Mat Min Exi Min Used RIF Installer . | . . . . . . . Robots Hacked . | . . . . . . . Non-combat . | . . . . . . . Combat . | . . . . . . . Robot Hacks Applied . | . . . . . . . Relay Couplers Released . | . . . . . . . Robots Rewired . | . . . . . . . Allies Hacked . | . . . . . . . Hacks Repelled . | . . . . . . . Allies | -11 -10 -10 -9 -9 -9 -8 -------- Run | Scr Mat Min Mat Min Exi Min Total Allies 3 | . . 3 . . . . Largest Group 3 | . . 3 3 . . . Highest-Rated Group 40 | . . 40 40 . . . Highest-Rated Ally 16 | . . 16 16 . . . Total Orders . | . . . . . . . Ally Attacks 20 | . . 2 18 . . . Total Damage 207 | . . 18 189 . . . Kills 6 | . . 1 5 . . . Allies Corrupted . | . . . . . . . Allies Melted . | . . . . . . . Intel | -11 -10 -10 -9 -9 -9 -8 ------- Run | Scr Mat Min Mat Min Exi Min Robot Analysis Total . | . . . . . . . Derelict Logs Recovered 3 | . . 2 . 1 . . Drone Launches . | . . . . . . . Drone Recoveries . | . . . . . . . Exploration | -11 -10 -10 -9 -9 -9 -8 ------------- Run | Scr Mat Min Mat Min Exi Min Turns Passed 8535 | 115 1837 1205 2175 1038 1758 407 Spaces Moved 3811 | 62 908 564 857 495 775 150 Core 3 | 3 . . . . . . Treads 3535 | 6 688 564 857 495 775 150 Legs . | . . . . . . . Wheels 273 | 53 220 . . . . . Hover . | . . . . . . . Flight . | . . . . . . . Fastest Speed 50 | 50 100 180 180 200 180 220 Average Speed 186 | 103 160 180 197 200 200 220 Slowest Speed 240 | 160 180 200 200 240 220 220 Overloaded Moves . | . . . . . . . Propulsion Burnouts . | . . . . . . . Robots Hopped . | . . . . . . . Cave-ins Triggered . | . . . . . . . Exploration Rate (%) 67 | 3 97 96 68 94 78 33 Regions Visited 6 Branch Regions 4 Pre-discovered Areas 6 | . 1 1 2 1 1 . Known Exits Taken 1 | . . . 1 . . . Unknown Exits Taken 5 | 1 1 1 . 1 1 . Scrap Searched 3 | . . 2 . 1 . . Spaces Dug 2 | . 2 . . . . . Terrain Destroyed 163 | . 15 112 16 20 . . Melee . | . . . . . . . Projectile 2 | . 2 . . . . . AOE 161 | . 13 112 16 20 . . Terrain Rammed . | . . . . . . . Walls Destroyed . | . . . . . . . Machines Disabled . | . . . . . . . Actions | -11 -10 -10 -9 -9 -9 -8 --------- Run | Scr Mat Min Mat Min Exi Min Total 4687 | 90 1169 663 1131 539 899 196 Wait 308 | 4 140 26 60 31 23 24 Move 3805 | 61 907 563 856 494 774 150 Hop . | . . . . . . . Pick Up 105 | 8 22 8 40 3 21 3 Fast Attach 16 | 7 4 . 3 . 2 . Attach 24 | . 2 9 4 . 9 . Detach . | . . . . . . . Swap 41 | 1 12 4 16 5 1 2 Drop 75 | . 19 . 38 3 15 . Fire 301 | 9 63 43 114 3 54 15 Melee . | . . . . . . . Ram . | . . . . . . . Kick . | . . . . . . . Crush 12 | . . 10 . . . 2 Escape Stasis . | . . . . . . . Rewire . | . . . . . . . Trap . | . . . . . . . Miscellaneous . | . . . . . . . Route ------- -11/Scrapyard -10/Materials (discovered 4 exits: *Mat x3 / [*Min]) -10/Mines (discovered 2 exits: *Mat x2) -9/Materials (discovered 6 exits: [*Mat x3] / *Min / *Sto x2) -9/Mines (discovered 4 exits: [*Mat x2] / *Exi / [*Zio]) -9/Exiles (discovered 2 exits: [*Min x2]) -8/Mines (discovered 1 exit: [*Mat]) History --------- Turn | Location | Event 32 | -11/Scrapyard | Discovered new exit (range 16) 116 | -11/Scrapyard | Entered Materials 304 | -10/Materials | Build established: Mutant 614 | -10/Materials | Discovered new exit (range 12) 947 | -10/Materials | Discovered new exit (range 14) 1454 | -10/Materials | Discovered new exit (range 16) 1834 | -10/Materials | Discovered new exit (range 13) 1953 | -10/Materials | Entered Mines 2110 | -10/Mines | Found a damaged Exp. Sensor Array with a note attached 2113 | -10/Mines | Found Prototype Device 2238 | -10/Mines | Assembled infested the area 2269 | -10/Mines | Core integrity fell below 50% 2355 | -10/Mines | Lost 7 parts (1p2n4w) 2357 | -10/Mines | Destroyed 13 combat bots 2381 | -10/Mines | Learned Materials security intel 2412 | -10/Mines | Learned location of Storage (-9) 2577 | -10/Mines | Discovered new exit (range 13) 2615 | -10/Mines | Learned Materials stockpile data 2994 | -10/Mines | Assisted by bots powering up and referring to "LRC-V3" 3012 | -10/Mines | Discovered new exit (range 13) 3158 | -10/Mines | Entered Materials 3158 | -9/Materials | Accompanied by 3 allies 3158 | -9/Materials | Evolved 2 slots: Utility x2 3484 | -9/Materials | Build established: Hauler-Mutant 3547 | -9/Materials | Discovered new exit (range 12) 3725 | -9/Materials | Discovered new exit (range 14) 4462 | -9/Materials | Discovered new exit (range 20) 4981 | -9/Materials | Discovered new exit (range 20) 5297 | -9/Materials | Identified exit to Mines 5297 | -9/Materials | Identified exit to Storage 5333 | -9/Materials | Entered Mines 5340 | -9/Mines | Received a Rocket Launcher from a helpful Derelict 5483 | -9/Mines | A weapon hastily lodged in a ceiling crevice suddenly fell to the ground 5491 | -9/Mines | Discovered new exit (range 19) 5670 | -9/Mines | A Derelict revealed a hidden shortcut to a safe place 5891 | -9/Mines | Discovered new exit (range 6) 6015 | -9/Mines | Learned location of Zion (-7) 6310 | -9/Mines | Deemed a non-threat by the Exiles lab entrance 6310 | -9/Mines | Discovered new exit (range 5) 6371 | -9/Mines | Entered Exiles 6398 | -9/Exiles | Discovered new exit (range 17) 6420 | -9/Exiles | Met 8R-AWN 6454 | -9/Exiles | Met EX-HEX 6542 | -9/Exiles | Met EX-DEC 6651 | -9/Exiles | Visited The Gauntlet 6854 | -9/Exiles | Discovered new exit (range 14) 7587 | -9/Exiles | Met EX-BIN 7611 | -9/Exiles | Aligned with FarCom system 7613 | -9/Exiles | Given EX-Vault access code 7659 | -9/Exiles | Opened EX-Vault 7671 | -9/Exiles | Found AWS/Thermal 7712 | -9/Exiles | Warned to stay clear of 0b10 Research branches 7741 | -9/Exiles | Exiles lab attacked by MAIN.C 7904 | -9/Exiles | Attacked by the Exiles 7908 | -9/Exiles | Core integrity fell below 50% 8016 | -9/Exiles | Lost 4 parts (2n1u1w) 8044 | -9/Exiles | Core integrity fell below 20% 8046 | -9/Exiles | Destroyed 8R-AWN 8051 | -9/Exiles | Found Prototype Ballistic Gun 8060 | -9/Exiles | Found Prototype Device 8129 | -9/Exiles | Left Exiles lab with AWS/Thermal 8129 | -9/Exiles | Entered Mines 8452 | -8/Mines | Discovered new exit (range 14) 8536 | -8/Mines | Self-destructed Last Messages --------------- 08103_ Acquired Hrd. Light Armor Plating. 08108_ Acquired Hcp. Matter Pod. LOCATION=UNKNOWN GOAL=ESCAPE 08138_ Acquired Lgt. Treads. 08146_ Acquired Weapon Shielding. 08156_ Acquired Lrn. Tractor Beam. 08183_ K-01 Serf collects debris. 08188_ L-31 Rogue destroyed. 08188_ Switching to secondary target: G-47 Trooper. 08218_ R-06 Scavenger collects Core Shielding. 08221_ K-01 Serf collects debris. 08251_ K-01 Serf cleans the Plasma Injector. 08338_ Slammed into K-01 Serf. 08379_ Acquired 59 matter. 08382_ G-47 Trooper destroyed. 08399_ Slammed into R-06 Scavenger. 08400_ Acquired 48 matter. 08402_ Acquired 44 matter. 08452_ EXIT=FOUND Map ----- +----------------------------------------------------+ | | | ????????????????????????????????????????????????? | | ????????????????????????????????????????????????? | | ????????????????????????????????????????????????? | | ????????????????????????????????????????????????? | | ????????????????????????????????????????????????? | | ????????????????????????????????????????????????? | | ????????????????????????????????????????????????? | | ????????????????????????????????????????????????? | | ????????????????????????????????????????????????? | | ???????????????????????? ?????????????????????? | | ???????????????????????? ???????????###???????? | | ???????????????????????? ??????????# ##??????? | | ???????????????????????? ?????????# ##?????? | | ???????????????????????? ?????#### #?????? | | ???????????????????????? ???### #?????? | | ???????????????????????? ??## ##????? | | ???????????????????????? ??# #????? | | ????????????????????????# #??# #????? | | ????????????????????????#k#??## #?????? | | ????????????????????????# #???# ##?????? | | ????????????????????????# #???## ##??????? | | ????????????????????????#g#????## ##???????? | | ????????????????????????#g####### < ##????????? | | ????????????????????????#g## ##?????????? | | ????????????????????????#@## ##### #??????????? | | ????????????????????????# ## #???## #??????????? | | ????????????????????????# ## #????# #??????????? | | ????????????????????????# #????# #??????????? | | ?????????????????????# ####????# #??????????? | | ?????????????????????# #???????# #??????????? | | ?????????????????????# ###???????# #??????????? | | ???????????????????? ?????????## #??????????? | | ?????????????????? ?????????# #??????????? | | ????????????????? ##??????????# ##??????????? | | ???????????????? #????????????# #???????????? | | ??????????????? ?????????##### #???????????? | | ?????????????? ??????????# #???????????? | | ?????????????? ???????????# #???????????? | | ?????????????? ????????????# ######???????????? | | ???????????????? ?????????#### #########????????? | | ??????????????????????????# #????????? | | ??????????????????????????# #????????? | | ??????????????????????????# """ """ #????????? | | ??????????????????????????# """ """ #????????? | | ??????????????????????????# """ """ #????????? | | ??????????????????????????# #????????? | | ??????????????????????????# """ """ #????????? | | ??????????????????????????# """ """ #????????? | | ??????????????????????????# """ """ #????????? | +----------------------------------------------------+ Best States ------------- Heat Dissipation 28 Energy Generation 14 Energy Capacity 280 Matter Stores 300 Matter Capacity 300 Sight Range 20 Terrain Scan Density 10 Armor Coverage 225 Core Shielding 20 Evasion (%) 40 Recoil Reduction 2 Item Schematics ----------------- None Robot Schematics ------------------ None Fabricated ------------ Nothing Alien Tech Used ----------------- None Achievements -------------- None Challenges ------------ None Game ------ Seed UtilityShrapnelSheargun Manual? 0 Play Time 00:53:19 Cumulative 220.3 hours Start 2020.10.13 @ 21:35:29 End 2020.10.14 @ 00:35:23 Sessions 2 Manual Loads 0 Difficulty Rogue Special Mode None Game No. 242 Rogue 242 Adventurer 0 Explorer 0 Win Type - Total 2 Types 2/0/0/0/0/0/0/0/0 Lore% 61 Gallery% 76 Achievement% 58 Wizard Run 0 Options --------- ASCII 0 Keyboard 0 Movement Numpad Keybinds 0 Fullscreen 2 Font 24/Terminus Map View 76x50 Tactical HUD 1 Map Filters NONE Filters NONE Steam 1 RUN: abd2c2e8-e196-4398-80b0-5793fd4a4449